bitfinex/quotes_SOLUSD_20250819
["timestamp","ask_amount","ask_price","bid_price","bid_amount"]
[1755608135674,0.72,182.17,182.16,5.48959359]
[1755608136070,0.72,182.17,182.16,11.42819164]
[1755608139695,0.69,182.19,182.16,11.42819164]
[1755608139876,0.69,182.18,182.16,11.42819164]
[1755608140902,0.69,182.18,182.16,5.48959359]
[1755608141081,0.69,182.18,182.16,11.42819164]
[1755608141287,0.69,182.18,182.16,5.48959359]
[1755608141489,0.69,182.17,182.16,11.42819164]
[1755608142982,0.69,182.19,182.16,11.42819164]
[1755608143198,0.69,182.19,182.17,5.93859805]
[1755608143404,38.68,182.2,182.17,5.93859805]
[1755608143575,38.68,182.2,182.18,5.93859805]
[1755608143783,39.37,182.2,182.18,5.93859805]
[1755608144103,0.69,182.19,182.17,5.93859805]
[1755608144274,38.68,182.2,182.16,19.21379209]
[1755608144598,0.69,182.18,182.16,5.48959359]
[1755608144978,0.69,182.17,182.16,5.48959359]
[1755608145301,0.69,182.17,182.16,11.42819164]
[1755608145480,0.69,182.19,182.16,11.42819164]
[1755608145681,0.69,182.18,182.16,11.42819164]
[1755608149712,0.69,182.18,182.16,5.48959359]
[1755608150887,2.86318807,182.2,182.17,0.71]
[1755608151106,41.50318807,182.2,182.17,0.71]
[1755608151711,41.50318807,182.2,182.18,5.48907673]
[1755608152709,2.86318807,182.2,182.18,6.19907673]
[1755608153018,2.86318807,182.2,182.17,5.48937805]
[1755608153228,2.86318807,182.2,182.17,6.19937805]
[1755608153725,2.86318807,182.2,182.17,12.1379761]
[1755608154091,2.86318807,182.2,182.17,6.19937805]
[1755608154290,3.55318807,182.2,182.17,6.19937805]
[1755608154509,0.69,182.19,182.17,5.48937805]
[1755608154789,0.06,182.18,182.17,5.48937805]
[1755608155088,0.75,182.18,182.17,5.48937805]
[1755608156616,6.68859805,182.18,182.16,79.2]
[1755608157011,0.69,182.17,182.16,79.2]
[1755608157318,6.62859805,182.17,182.15,5.48976936]
[1755608157631,0.69,182.16,182.15,5.48976936]
[1755608157804,38.68,182.18,182.15,6.19976936]
[1755608158116,39.37,182.18,182.15,5.48976936]
[1755608159722,39.37,182.18,182.15,6.19976936]
[1755608159902,38.68,182.18,182.16,0.71]
[1755608160218,0.69,182.17,182.15,5.48976936]
[1755608160724,38.68,182.18,182.15,5.48976936]
[1755608160926,39.37,182.18,182.15,5.48976936]
[1755608161604,38.68,182.18,182.15,5.48976936]
[1755608161806,0.69,182.17,182.15,5.48976936]
[1755608162611,38.68,182.18,182.15,5.48976936]
[1755608162821,38.68,182.18,182.16,0.71]
[1755608163823,0.06,182.18,182.16,0.71]
[1755608164335,0.06,182.18,182.17,5.48937805]
[1755608165099,0.06,182.18,182.17,6.19937805]
[1755608166704,0.06,182.18,182.17,5.48937805]
[1755608167409,0.06,182.18,182.17,6.19937805]
[1755608168502,0.06,182.18,182.17,12.1379761]
[1755608169198,0.06,182.18,182.17,91.3379761]
[1755608169932,0.06,182.18,182.17,12.1379761]
[1755608171833,0.06,182.18,182.17,27.24419167]
[1755608173741,0.06,182.18,182.17,21.30559362]
[1755608173920,0.06,182.18,182.17,27.24419167]
[1755608176036,0.06,182.18,182.17,21.30559362]
[1755608176219,1e-08,182.18,182.17,27.24419167]
[1755608176607,1e-08,182.18,182.17,53.24419167]
[1755608177135,1e-08,182.18,182.17,132.44419167]
[1755608177639,1e-08,182.2,182.19,41.10621557]
[1755608177834,1e-08,182.22,182.2,15.10621557]
[1755608178008,1e-08,182.22,182.21,85.64481362]
[1755608178534,1e-08,182.22,182.21,86.34481362]
[1755608178908,1e-08,182.22,182.21,91.8329866]
[1755608179221,1e-08,182.24,182.23,15.10621557]
[1755608179431,1e-08,182.24,182.23,59.64481362]
[1755608179629,1e-08,182.24,182.23,60.34481362]
[1755608180941,1e-08,182.24,182.23,65.83238427]
[1755608183337,1e-08,182.24,182.23,145.03238427]
[1755608184953,1e-08,182.24,182.23,65.83238427]
[1755608189447,1e-08,182.26,182.24,15.10621557]
[1755608189751,1e-08,182.26,182.25,45.21859805]
[1755608190054,1e-08,182.26,182.25,39.28]
[1755608190255,1e-08,182.26,182.25,45.21859805]
[1755608191039,1e-08,182.26,182.25,50.70556649]
[1755608191629,1e-08,182.26,182.25,12.12556649]
[1755608191928,1e-08,182.26,182.25,50.70556649]
[1755608192124,1e-08,182.26,182.25,44.06696844]
[1755608192323,0.70000001,182.26,182.25,5.48696844]
[1755608193457,0.70000001,182.26,182.25,11.42556649]
[1755608194438,0.70000001,182.26,182.25,5.48696844]
[1755608194639,0.70000001,182.26,182.24,5.48721096]
[1755608195145,0.70000001,182.26,182.23,5.48757065]
[1755608195741,5.93859805,182.25,182.19,13.72156183]
[1755608195962,5.93859805,182.23,182.19,5.48877545]
[1755608196336,0.7,182.22,182.19,5.48877545]
[1755608197177,6.63859805,182.22,182.18,5.48907673]
[1755608197336,5.93859805,182.2,182.17,5.51930752]
[1755608197532,1e-08,182.26,182.17,5.51930752]
[1755608197533,0.7,182.19,182.17,5.51930752]
[1755608197737,0.7,182.21,182.18,26.0]
[1755608198039,0.7,182.21,182.18,5.93859805]
[1755608198370,0.7,182.21,182.17,6.21930752]
[1755608198557,0.71,182.2,182.18,5.93859805]
[1755608199363,0.71,182.2,182.19,5.48877545]
[1755608199548,5.93859805,182.22,182.18,5.489041]
[1755608200037,0.71,182.21,182.18,5.489041]
[1755608200867,0.71,182.21,182.17,11.4579761]
[1755608201040,0.71,182.2,182.17,11.4579761]
[1755608201239,0.71,182.2,182.17,12.1679761]
[1755608202054,0.71,182.2,182.17,6.22937805]
[1755608202259,0.71,182.2,182.17,12.1679761]
[1755608202567,0.71,182.22,182.19,5.48877545]
[1755608203644,0.71,182.21,182.19,5.48877545]
[1755608203840,5.93859805,182.23,182.19,5.48877545]
[1755608204049,5.93859805,182.2,182.17,0.03]
[1755608204239,0.71,182.19,182.17,26.03]
[1755608204444,6.64859805,182.19,182.17,0.03]
[1755608204765,0.71,182.19,182.17,0.03]
[1755608205078,0.71,182.18,182.17,0.03]
[1755608206047,6.64859805,182.18,182.17,0.03]
[1755608206574,12.13767478,182.18,182.17,0.03]
[1755608210257,27.24389035,182.18,182.17,0.03]
[1755608210583,15.10621557,182.17,182.15,0.03]
[1755608210752,21.04481362,182.16,182.15,0.03]
[1755608210946,36.86530235,182.16,182.15,0.03]
[1755608211149,36.15530235,182.16,182.15,0.03]
[1755608211375,36.86530235,182.16,182.15,0.03]
[1755608211585,15.10621557,182.15,182.13,0.03]
[1755608211749,59.62481362,182.14,182.13,0.03]
[1755608211951,64.0170249,182.14,182.13,0.03]
[1755608212973,69.5073071,182.14,182.13,0.03]
[1755608213177,65.82509582,182.14,182.13,0.03]
[1755608213351,68.69033539,182.14,182.13,0.03]
[1755608220162,26.0,182.12,182.11,0.03]
[1755608220361,47.04481362,182.12,182.09,0.03]
[1755608220565,21.04481362,182.1,182.09,0.03]
[1755608221255,21.75481362,182.1,182.09,0.03]
[1755608221667,27.24630181,182.1,182.09,0.03]
[1755608222398,65.84630181,182.1,182.09,0.03]
[1755608224176,65.84630181,182.1,182.07,0.03]
[1755608224384,21.04481362,182.08,182.07,0.03]
[1755608224690,59.64481362,182.08,182.07,0.03]
[1755608225094,60.35481362,182.08,182.07,0.03]
[1755608225702,65.846905,182.08,182.07,0.03]
[1755608228276,65.846905,182.08,182.05,0.03]
[1755608228277,21.04481362,182.06,182.05,0.03]
[1755608228481,59.64481362,182.06,182.05,0.03]
[1755608228680,60.36481362,182.06,182.05,0.03]
[1755608230278,65.85750833,182.06,182.05,0.03]
[1755608231708,15.10621557,182.05,182.03,0.03]
[1755608231889,44.53859805,182.04,182.03,0.03]
[1755608232088,45.25859805,182.04,182.03,0.03]
[1755608232480,50.75189622,182.04,182.03,0.03]
[1755608233683,53.61873575,182.04,182.03,0.03]
[1755608235230,52.89873575,182.04,182.03,0.03]
[1755608235521,68.00495132,182.04,182.03,0.03]
[1755608237203,68.72495132,182.04,182.03,0.03]
[1755608237831,92.040542,182.04,182.0,0.1]
[1755608238035,21.04481362,182.01,182.0,0.1]
[1755608238331,59.64481362,182.01,182.0,0.1]
[1755608238523,60.36481362,182.01,182.0,0.1]
[1755608238899,65.13901723,182.01,182.0,0.1]
[1755608239333,44.53859805,182.01,182.0,0.77]
[1755608239703,50.03280166,182.01,182.0,0.77]
[1755608239906,50.03280166,182.01,182.0,0.1]
[1755608240397,69.5056666,182.01,182.0,0.1]
[1755608240618,65.85901723,182.01,182.0,0.1]
[1755608242318,15.10621557,182.0,181.99,0.03]
[1755608242506,25.41313224,182.0,181.99,0.03]
[1755608244413,30.90763773,182.0,181.99,0.03]
[1755608246824,30.18763773,182.0,181.99,0.03]
[1755608247432,30.90763773,182.0,181.99,0.03]
[1755608247836,30.18763773,182.0,181.99,0.03]
[1755608248039,56.18763773,182.0,181.99,0.7]
[1755608248713,56.90763773,182.0,181.99,0.03]
[1755608249635,56.18763773,182.0,181.99,0.7]
[1755608249933,94.80763773,182.0,181.99,0.7]
[1755608251109,94.80763773,182.0,181.99,0.03]
[1755608252862,94.80763773,182.0,181.99,0.7]
[1755608254069,97.67464764,182.0,181.99,0.7]
[1755608254449,97.67464764,182.0,181.99,0.03]
[1755608256552,32.51532853,182.0,181.99,0.7]
[1755608256774,6.51532853,182.0,181.99,0.7]
[1755608257073,41.48700991,182.0,181.99,0.7]
[1755608257292,45.13532853,182.0,181.99,0.7]
[1755608257589,45.19532853,182.0,181.99,0.7]
[1755608258882,41.54700991,182.0,181.99,0.7]
[1755608260683,41.54700991,182.0,181.99,6.1948074]
[1755608261183,41.54700991,182.0,181.99,12.13340545]
[1755608261479,41.54700991,182.0,181.99,6.1948074]
[1755608261644,41.54700991,182.0,181.99,0.7]
[1755608261848,41.54700991,182.0,181.99,6.1948074]
[1755608263281,41.54700991,182.0,181.99,12.13340545]
[1755608263446,2.92700991,182.0,181.99,12.13340545]
[1755608263642,0.06,182.0,181.99,12.13340545]
[1755608264468,1e-08,182.0,181.99,27.23962102]
[1755608266848,1e-08,182.02,182.01,46.60041918]
[1755608267054,1e-08,182.02,182.01,52.53901723]
[1755608267380,1e-08,182.02,182.01,53.18901723]
[1755608271968,1e-08,182.02,182.01,132.38901723]
[1755608274276,1e-08,182.02,182.01,170.96901723]
[1755608274478,1e-08,182.02,182.01,144.96901723]
[1755608275890,0.06,182.04,182.03,41.10621557]
[1755608276071,0.06,182.04,182.03,126.24481362]
[1755608276272,0.06,182.04,182.03,126.89481362]
[1755608277891,0.06,182.06,182.04,15.10621557]
[1755608278080,0.06,182.06,182.05,5.93859805]
[1755608278275,0.06,182.06,182.05,6.58859805]
[1755608278481,0.06,182.06,182.05,5.93859805]
[1755608278685,0.06,182.06,182.05,6.58859805]
[1755608279361,0.06,182.06,182.05,85.78859805]
[1755608279565,0.06,182.06,182.05,91.28159447]
[1755608281499,0.06,182.06,182.05,85.34299642]
[1755608281676,0.06,182.06,182.05,91.28159447]
[1755608282504,0.73,182.06,182.05,84.69299642]
[1755608283694,0.73,182.06,182.05,90.63159447]
[1755608283903,0.73,182.06,182.05,11.43159447]
[1755608284477,0.73,182.06,182.04,5.49329817]
[1755608284672,0.06,182.06,182.04,5.49329817]
[1755608284872,0.73,182.06,182.04,5.49329817]
[1755608285095,0.67,182.05,182.04,5.49329817]
[1755608285808,0.67,182.05,182.04,11.43189622]
[1755608286015,0.06,182.06,182.04,11.43189622]
[1755608286376,0.06,182.06,182.05,5.93859805]
[1755608286614,0.06,182.06,182.05,6.58859805]
[1755608287710,0.06,182.06,182.05,11.43159447]
[1755608288300,0.06,182.06,182.05,12.15159447]
[1755608289916,0.06,182.06,182.05,91.35159447]
[1755608290078,0.06,182.06,182.05,85.41299642]
[1755608290280,0.06,182.06,182.05,91.35159447]
[1755608292290,1e-08,182.06,182.05,106.45781004]
[1755608293311,1e-08,182.07,182.05,145.01781004]
[1755608293484,0.06,182.1,182.06,21.76481362]
[1755608293680,0.06,182.1,182.09,5.93859805]
[1755608294605,0.06,182.1,182.09,6.65859805]
[1755608294921,0.06,182.1,182.09,12.15038782]
[1755608296515,0.06,182.12,182.09,12.15038782]
[1755608296703,0.06,182.12,182.11,11.42978469]
[1755608297317,0.77,182.12,182.11,11.42978469]
[1755608297520,0.06,182.12,182.11,12.14978469]
[1755608297825,0.06,182.15,182.11,25.8777513]
[1755608298004,0.06,182.15,182.14,5.93859805]
[1755608298821,0.06,182.15,182.14,16.81145161]
[1755608299930,1e-08,182.15,182.14,17.53145161]
[1755608300427,1e-08,182.15,182.14,32.63766718]
[1755608300618,1e-08,182.16,182.14,32.63766718]
[1755608300816,1e-08,182.16,182.15,6.65859805]
[1755608301330,0.06,182.18,182.15,32.65859805]
[1755608301501,0.06,182.18,182.17,31.93859805]
[1755608302025,0.06,182.18,182.17,32.65859805]
[1755608302321,38.76,182.21,182.17,32.65859805]
[1755608302489,38.76,182.21,182.18,0.72]
[1755608302688,39.47,182.21,182.2,5.93859805]
[1755608303304,39.47,182.21,182.2,11.42707225]
[1755608303833,0.2,182.21,182.2,12.14707225]
[1755608304220,0.2,182.21,182.2,11.42707225]
[1755608304921,0.2,182.21,182.2,12.14707225]
[1755608306820,1e-08,182.21,182.2,27.25328782]
[1755608307530,1e-08,182.21,182.2,90.62707225]
[1755608308210,1e-08,182.21,182.2,91.34707225]
[1755608309444,0.71000001,182.21,182.2,84.6884742]
[1755608309611,0.71000001,182.21,182.2,90.62707225]
[1755608309929,1e-08,182.21,182.2,90.62707225]
[1755608310130,0.71000001,182.21,182.2,90.62707225]
[1755608310637,0.71000001,182.21,182.2,84.6884742]
[1755608310931,0.71000001,182.21,182.2,79.2]
[1755608311514,0.71000001,182.21,182.2,90.62707225]
[1755608311916,1e-08,182.21,182.2,90.62707225]
[1755608312221,1e-08,182.21,182.2,84.6884742]
[1755608312551,1e-08,182.21,182.2,90.62707225]
[1755608313223,1e-08,182.21,182.2,91.34707225]
[1755608314232,1e-08,182.21,182.2,27.25328782]
[1755608314544,1e-08,182.21,182.2,53.25328782]
[1755608321328,1e-08,182.21,182.2,47.31468977]
[1755608321539,1e-08,182.21,182.2,53.25328782]
[1755608322448,1e-08,182.21,182.2,132.45328782]
[1755608326241,0.06,182.23,182.2,132.45328782]
[1755608326449,1e-08,182.23,182.22,21.04481362]
[1755608326650,1e-08,182.23,182.22,100.24481362]
[1755608327023,1e-08,182.23,182.22,100.94481362]
[1755608327220,1e-08,182.23,182.22,106.43268542]
[1755608328626,1e-08,182.23,182.22,105.73268542]
[1755608329250,1e-08,182.23,182.22,106.43268542]
[1755608329755,0.69000001,182.23,182.22,84.6878718]
[1755608329958,0.69000001,182.23,182.22,90.62646985]
[1755608330552,0.69000001,182.23,182.22,11.42646985]
[1755608334536,0.69000001,182.23,182.19,78.94123645]
[1755608334537,0.69000001,182.23,182.2,5.4884742]
[1755608334738,0.69000001,182.23,182.22,5.93859805]
[1755608337347,0.69000001,182.23,182.22,11.42646985]
[1755608339970,1e-08,182.23,182.22,90.62646985]
[1755608340474,6.62859806,182.23,182.19,5.48877545]
[1755608340640,0.69,182.22,182.19,5.48877545]
[1755608341361,4.34847122,182.22,182.19,5.48877545]
[1755608341665,4.78270616,182.21,182.18,0.03]
[1755608341871,4.09270616,182.2,182.18,5.96859805]
[1755608342047,4.34847123,182.23,182.19,5.93859805]
[1755608342245,4.0928343,182.22,182.21,5.93859805]
[1755608342754,8.44130552,182.22,182.18,5.96859805]
[1755608342958,0.69,182.21,182.18,0.03]
[1755608343144,0.69,182.21,182.18,5.96859805]
[1755608343343,8.44443957,182.21,182.18,0.03]
[1755608343648,0.69,182.2,182.18,5.96859805]
[1755608344278,0.69,182.2,182.18,0.03]
[1755608344451,4.34847122,182.22,182.18,5.96859805]
[1755608344668,0.69,182.21,182.19,5.48877545]
[1755608344986,0.69,182.21,182.19,11.4273735]
[1755608345140,3.65847122,182.22,182.2,5.93859805]
[1755608345345,3.65847123,182.23,182.21,5.93859805]
[1755608345563,7.7567767,182.22,182.21,5.93859805]
[1755608345776,4.09830548,182.22,182.21,5.93859805]
[1755608346245,4.78830548,182.22,182.21,5.48817298]
[1755608347246,8.4467767,182.22,182.21,5.48817298]
[1755608348376,4.78830548,182.22,182.21,5.48817298]
[1755608348747,0.69,182.22,182.21,5.48817298]
[1755608350661,0.69,182.22,182.2,5.4884742]
[1755608355270,0.69,182.22,182.2,10.98408539]
[1755608355673,1e-08,182.23,182.2,10.98408539]
[1755608355977,0.71000001,182.23,182.2,10.98408539]
[1755608356665,0.71,182.22,182.2,10.98408539]
[1755608357478,0.71000001,182.23,182.2,10.98408539]
[1755608357873,0.71000001,182.23,182.2,11.67408539]
[1755608358358,1e-08,182.23,182.2,11.67408539]
[1755608360564,0.71000001,182.23,182.2,11.67408539]
[1755608360781,1e-08,182.23,182.22,5.93859805]
[1755608361081,0.71000001,182.23,182.21,79.2]
[1755608361378,1e-08,182.23,182.21,79.89]
[1755608362582,1e-08,182.23,182.22,5.4878718]
[1755608364378,0.71000001,182.23,182.22,5.4878718]
[1755608365871,1e-08,182.23,182.22,5.4878718]
[1755608369271,1e-08,182.23,182.22,6.1778718]
[1755608371379,1e-08,182.23,182.22,5.4878718]
[1755608373172,1e-08,182.23,182.22,0.69]
[1755608373770,1e-08,182.23,182.21,5.48817298]
[1755608374091,0.71000001,182.23,182.21,5.48817298]
[1755608374481,1e-08,182.23,182.21,6.17817298]
[1755608376595,1e-08,182.23,182.22,0.69]
[1755608377483,1e-08,182.23,182.22,6.1778718]
[1755608377988,4.10882454,182.23,182.22,6.1778718]
[1755608379208,4.10882454,182.23,182.22,12.11646985]
[1755608380200,0.2,182.25,182.22,12.11646985]
[1755608380407,0.2,182.25,182.24,5.93859805]
[1755608380973,0.2,182.25,182.24,6.59859805]
[1755608381699,0.2,182.25,182.24,12.08586758]
[1755608383680,1e-08,182.25,182.24,27.19208315]
[1755608384294,1e-08,182.25,182.24,106.39208315]
[1755608386208,1e-08,182.25,182.24,144.87208315]
[1755608386419,1e-08,182.25,182.24,84.68726953]
[1755608386581,0.66000001,182.25,182.24,84.68726953]
[1755608388193,1e-08,182.25,182.24,90.62586758]
[1755608388704,1e-08,182.25,182.24,91.28586758]
[1755608390461,1e-08,182.25,182.24,90.62586758]
[1755608390900,1e-08,182.25,182.24,91.28586758]
[1755608392218,1e-08,182.25,182.24,91.31586758]
[1755608393422,1e-08,182.25,182.24,106.42208315]
[1755608400142,1e-08,182.25,182.24,105.76208315]
[1755608400315,0.66000001,182.25,182.24,5.51726953]
[1755608400853,0.66000001,182.25,182.24,11.45586758]
[1755608401008,1e-08,182.25,182.24,11.45586758]
[1755608401617,1e-08,182.25,182.24,49.93586758]
[1755608402019,0.66000001,182.25,182.24,43.99726953]
[1755608402241,0.66000001,182.25,182.24,49.93586758]
[1755608402537,1e-08,182.25,182.24,49.93586758]
[1755608403517,0.66000001,182.25,182.24,43.99726953]
[1755608403731,0.66000001,182.25,182.24,5.51726953]
[1755608404733,4.06793732,182.25,182.24,5.51726953]
[1755608405429,0.66000001,182.25,182.24,5.51726953]
[1755608405743,0.66000001,182.25,182.24,0.03]
[1755608406653,1e-08,182.25,182.24,6.62859805]
[1755608406850,1e-08,182.25,182.24,0.69]
[1755608407019,1e-08,182.25,182.24,5.96859805]
[1755608407217,1e-08,182.25,182.24,6.62859805]
[1755608407752,1e-08,182.25,182.24,12.11586758]
[1755608409233,1e-08,182.25,182.24,27.22208315]
[1755608409442,1e-08,182.25,182.24,53.22208315]
[1755608410652,0.66000001,182.25,182.24,37.45586758]
[1755608410849,0.66000001,182.25,182.24,5.51726953]
[1755608411141,6.59859806,182.25,182.24,0.03]
[1755608411724,10.00466997,182.25,182.24,0.03]
[1755608411942,4.06607192,182.25,182.24,0.03]
[1755608414545,3.40607192,182.25,182.24,0.03]
[1755608414853,1e-08,182.25,182.24,5.96859805]
[1755608415029,3.40812232,182.25,182.24,5.96859805]
[1755608415233,1e-08,182.25,182.24,5.96859805]
[1755608415555,0.66000001,182.25,182.24,5.96859805]
[1755608415764,1e-08,182.25,182.24,11.45586758]
[1755608416858,1e-08,182.25,182.24,12.16586758]
[1755608417741,1e-08,182.25,182.24,11.45586758]
[1755608418555,1e-08,182.25,182.24,12.16586758]
[1755608419642,1e-08,182.25,182.24,11.45586758]
[1755608420561,1e-08,182.25,182.24,5.51726953]
[1755608421063,0.66000001,182.25,182.24,5.51726953]
[1755608421247,0.66000001,182.25,182.24,0.03]
[1755608421248,10.0078612,182.25,182.24,0.03]
[1755608421645,13.70045432,182.25,182.24,0.03]
[1755608424036,34.29363833,182.25,182.24,0.03]
[1755608424646,36.49343533,182.25,182.24,0.03]
[1755608425572,33.08417219,182.25,182.24,0.03]
[1755608425870,36.48984116,182.25,182.24,0.03]
[1755608426251,36.49002866,182.25,182.24,0.03]
[1755608426655,72.74878559,182.25,182.24,0.03]
[1755608429052,7.75700353,182.25,182.24,0.03]
[1755608429246,48.48300846,182.25,182.24,0.03]
[1755608429468,52.17560158,182.25,182.24,0.03]
[1755608430561,72.76878559,182.25,182.24,0.03]
[1755608431557,72.76647776,182.25,182.24,0.03]
[1755608433364,74.96615376,182.25,182.24,0.03]
[1755608433771,72.76647776,182.25,182.24,0.03]
[1755608434276,72.76611204,182.25,182.24,0.03]
[1755608434783,71.56405119,182.25,182.24,0.03]
[1755608434963,74.96483433,182.25,182.24,0.03]
[1755608435279,72.76515833,182.25,182.24,0.03]
[1755608435455,75.62858882,182.25,182.24,0.03]
[1755608435965,75.62806138,182.25,182.24,0.03]
[1755608437663,75.61858877,182.25,182.24,0.03]
[1755608440163,46.59438855,182.21,182.2,0.03]
[1755608440510,98.09527575,182.21,182.2,0.03]
[1755608440669,54.12710277,182.21,182.2,0.03]
[1755608440863,67.87772319,182.21,182.2,0.03]
[1755608441071,41.87772319,182.21,182.2,0.75]
[1755608441277,38.48,182.21,182.2,0.75]
[1755608441585,41.87784611,182.21,182.2,0.75]
[1755608442258,38.48,182.21,182.2,0.75]
[1755608442473,41.87778046,182.21,182.2,0.75]
[1755608442685,28.8634305,182.25,182.2,6.2384742]
[1755608443004,45.55897684,182.24,182.21,0.72]
[1755608443157,3.39741825,182.23,182.21,0.72]
[1755608443355,38.48,182.22,182.2,5.5184742]
[1755608443872,38.48,182.22,182.21,0.72]
[1755608444668,38.48,182.22,182.21,6.20817298]
[1755608445076,28.8634305,182.25,182.21,5.48817298]
[1755608445077,5.93859805,182.24,182.21,5.48817298]
[1755608445260,38.48,182.23,182.22,0.72]
[1755608446057,38.48000001,182.25,182.22,6.65859805]
[1755608446263,38.48000001,182.25,182.23,12.1461687]
[1755608446501,38.48000001,182.25,182.24,0.72]
[1755608447979,44.41859806,182.25,182.22,6.20778502]
[1755608448179,5.93859805,182.24,182.21,5.48817298]
[1755608448381,44.41859805,182.23,182.21,6.20817298]
[1755608448569,5.93859805,182.22,182.2,0.03]
[1755608448776,44.41859805,182.21,182.2,0.03]
[1755608449172,38.48,182.21,182.2,0.03]
[1755608449500,38.48,182.21,182.2,6.2384742]
[1755608450512,38.48,182.21,182.2,0.03]
[1755608450670,38.48,182.21,182.2,5.5184742]
[1755608450870,5.93859806,182.25,182.2,6.2384742]
[1755608451108,5.93859806,182.25,182.21,0.72]
[1755608451109,38.5,182.24,182.21,0.72]
[1755608451265,38.5,182.24,182.2,11.45707225]
[1755608451466,38.5,182.24,182.22,0.72]
[1755608452003,38.5,182.24,182.23,0.72]
[1755608452379,38.5,182.24,182.23,12.1461687]
[1755608453095,38.5,182.24,182.23,6.20757065]
[1755608453603,38.52000001,182.25,182.23,12.1461687]
[1755608453808,1e-08,182.25,182.24,5.93859805]
[1755608453986,1e-08,182.25,182.24,6.65859805]
[1755608454395,1e-08,182.25,182.24,12.14586758]
[1755608455799,1e-08,182.25,182.24,5.48726953]
[1755608457208,1e-08,182.25,182.24,6.20726953]
[1755608460012,1e-08,182.25,182.24,12.14586758]
[1755608460190,1e-08,182.25,182.24,5.48726953]
[1755608460890,0.71000001,182.25,182.24,5.48726953]
[1755608461395,0.71000001,182.25,182.22,5.4878718]
[1755608462311,4.11559839,182.25,182.22,5.4878718]
[1755608462607,0.71,182.24,182.2,0.03]
[1755608462906,47.86419643,182.23,182.2,0.03]
[1755608463090,44.45859805,182.23,182.2,0.03]
[1755608463292,5.93859805,182.22,182.2,0.03]
[1755608463505,0.71,182.22,182.2,0.03]
[1755608463809,4.11519204,182.22,182.2,0.03]
[1755608464004,7.80479405,182.22,182.2,0.03]
[1755608464208,3.40519204,182.21,182.2,0.03]
[1755608464701,4.39960201,182.22,182.2,0.03]
[1755608465893,0.71,182.21,182.2,0.03]
[1755608466099,4.11614553,182.21,182.2,0.03]
[1755608466503,3.40614553,182.21,182.2,0.03]
[1755608467102,4.11614553,182.21,182.2,0.03]
[1755608467412,3.40614553,182.21,182.2,0.03]
[1755608468787,3.40735494,182.21,182.2,0.03]
[1755608470097,3.68960201,182.22,182.2,0.03]
[1755608470301,3.40906074,182.21,182.2,0.03]
[1755608470705,3.40939311,182.21,182.2,0.03]
[1755608473405,3.40985459,182.21,182.2,0.03]
[1755608474517,10.04845264,182.21,182.2,0.03]
[1755608475597,4.10985459,182.21,182.2,0.03]
[1755608476802,13.7429668,182.21,182.2,0.03]
[1755608477010,15.53662562,182.21,182.2,0.03]
[1755608477217,19.23113978,182.21,182.2,0.03]
[1755608477423,13.7429668,182.21,182.2,0.03]
[1755608479519,13.74126268,182.21,182.2,0.03]
[1755608480328,13.74097059,182.21,182.2,0.03]
[1755608481507,7.10237254,182.21,182.2,0.03]
[1755608483135,13.74097059,182.21,182.2,0.03]
[1755608484520,19.22914357,182.21,182.2,0.03]
[1755608485552,19.22766123,182.21,182.2,0.03]
[1755608486633,13.28906318,182.21,182.2,0.03]
[1755608486834,19.22766123,182.21,182.2,0.03]
[1755608487434,16.60314341,182.21,182.2,0.03]
[1755608487635,15.90314341,182.21,182.2,0.03]
[1755608488244,16.60314341,182.21,182.2,0.03]
[1755608488446,13.19676737,182.21,182.2,0.03]
[1755608488743,16.60243941,182.21,182.2,0.03]
[1755608488950,55.08243941,182.21,182.2,0.03]
[1755608489126,55.0826663,182.21,182.2,0.03]
[1755608489325,49.14381,182.21,182.2,0.03]